Cogmind - Beta 9.4 @@@ ROGUE MODE // 2020.01.22 @ 16:38:14 Player: Stryker Result: Self-destructed Performance ------------- Evolutions (1) 500 Regions Visited (2) 400 Robots Destroyed (29) 145 Value Destroyed (673) 673 Prototype IDs (4) 80 Alien Tech Used (0) 0 Bonus (0) 0 TOTAL SCORE: 1798 Bonus ------- None Cogmind --------- Core Integrity 184/400 Matter 300/300 Energy 100/100 System Corruption 2% Temperature Cool (0) Movement Walking (210) Ox3 Location -9/Materials Parts ------- > --- POWER (1) -------- (None) > --- PROPULSION (3) --- Aluminum Leg > --- UTILITY (3) ------ Medium Storage Unit High-capacity Storage Unit > --- WEAPON (2) ------- (None) > --- INVENTORY (16) --- Ion Engine Wheel Compact Wheel Improved Heat Sink High-capacity Matter Pod (200) Reflective Plating Hacking Suite Hacking Suite Hacking Suite Hacking Suite Particle Gun Mining Laser Katana Peak State ------------ > --- POWER ------------ Heavy Ion Engine > --- PROPULSION ------- Light Treads Light Treads Light Treads > --- UTILITY ---------- Medium Storage Unit High-capacity Storage Unit Reflective Plating > --- WEAPON ----------- Light EM Pulse Cannon Light Cannon > --- INVENTORY -------- Ion Engine Wheel Wheel Compact Wheel High-capacity Matter Pod Reflective Plating Reflective Plating Hacking Suite Hacking Suite Hacking Suite Hacking Suite Light EM Pulse Cannon Light Assault Rifle Light Assault Rifle Katana [Rating: 17] Favorites ----------- Power Ion Engine Engine Ion Engine Propulsion Light Treads Treads Light Treads Leg Aluminum Leg Wheel Compact Wheel Flight Unit Improved Flight Unit Utility Medium Storage Unit Storage Medium Storage Unit Protection Reflective Plating Weapon Light Assault Rifle Energy Gun EM Pulse Gun Energy Cannon Light EM Pulse Cannon Ballistic Gun Light Assault Rifle Ballistic Cannon Light Cannon Build | -11 -10 -9 ------- Run | Scr Mat Mat Slots Evolved 2 | . . 2 Power . | . . . Propulsion 1 | . . 1 Utility 1 | . . 1 Weapon . | . . . Parts Attached 30 | 2 4 24 Power 2 | . . 2 Engine 2 | . . 2 Core . | . . . Reactor . | . . . Propulsion 12 | 2 . 10 Treads 6 | 1 . 5 Leg 2 | . . 2 Wheel 3 | 1 . 2 Hover . | . . . Flight 1 | . . 1 Utility 5 | . 2 3 Device . | . . . Storage 2 | . 2 . Processor . | . . . Hackware . | . . . Protection 3 | . . 3 Artifact . | . . . Weapon 11 | . 2 9 Energy Gun 2 | . 1 1 Energy Cannon 3 | . . 3 Ballistic Gun 5 | . 1 4 Ballistic Cannon 1 | . . 1 Launcher . | . . . Special Weapon . | . . . Impact Weapon . | . . . Slashing Weapon . | . . . Piercing Weapon . | . . . Special Melee Weapon . | . . . Unidentified Prototypes 2 | . . 2 Parts Lost 18 | . 1 17 Power 1 | . . 1 Propulsion 8 | . . 8 Utility 2 | . . 2 Weapon 7 | . 1 6 Highest Loss Streak 7 | . 1 7 Average Slot Usage (%) 91 | . 97 90 Engine 11 | . 14 10 Treads 18 | . 14 20 Leg 2 | . . 3 Wheel 7 | . 14 6 Storage 22 | . 25 22 Protection 7 | . . 9 Energy Gun 8 | . 20 5 Energy Cannon 1 | . . 1 Ballistic Gun 7 | . 7 8 Ballistic Cannon 1 | . . 2 Naked Turns . | . . . Heaviest Build 59 | 13 48 59 Greatest Support 60 | 20 20 60 Greatest Overweight (x) 5 | . 2 5 Average Overweight (x) 1 | . 1 2 Largest Inventory Capacity 16 | 6 16 16 Average Capacity 14 | 6 10 16 Most Carried 16 | 6 12 16 Average Carried 12 | 5 7 14 Final Capacity 16 | 6 16 16 Final Carried 13 | 6 12 13 Class Distribution -------------------- 100% | Mutant Dominant Class ---------------- Mutant | -10/Materials Mutant | -9/Materials Resources | -11 -10 -9 ----------- Run | Scr Mat Mat Matter Collected 849 | 220 34 595 Remotely . | . . . Salvage Created 964 | 75 139 750 Parts 67 | 3 12 52 Haulers Intercepted 3 | . . 3 Recyclers Shooed 2 | . 1 1 Parts Field Recycled . | . . . Retrieved Matter . | . . . Parts Self-Destructed . | . . . Prevented . | . . . Kills | -11 -10 -9 ------- Run | Scr Mat Mat Combat Hostiles Destroyed 22 | . 5 17 Melee 1 | . . 1 Guns 12 | . 5 7 Cannons 5 | . . 5 AOE 3 | . . 3 Classes Destroyed 9 | 2 2 5 Worker 1 | . . 1 Tunneler 1 | 1 . . Hauler 3 | . . 3 Recycler 1 | 1 . . Watcher 1 | . . 1 Swarmer 9 | . 3 6 Grunt 9 | . 2 7 Duelist 1 | . . 1 Sentry 3 | . . 3 Best Kill Streak 3 | 2 2 3 Combat Bots Only 3 | . 2 3 Max Kills in Single Turn 2 | 1 1 2 Gunslinging . | . . . Exploded 2 | . . 2 Melee 1 | . . 1 Uniques/NPCs Destroyed . | . . . Combat | -11 -10 -9 -------- Run | Scr Mat Mat Damage Taken 2286 | 36 236 2014 Core 299 | . 83 216 Absorbed by Shields . | . . . Core Remaining (%) 83 | 100 66 . Volleys Fired 116 | 5 15 96 Largest 2 | 2 2 2 Hottest 91 | 90 90 91 Shots Fired 213 | 10 30 173 Gun 161 | 10 30 121 Cannon 52 | . . 52 Launcher . | . . . Special . | . . . Kinetic 114 | . 5 109 Thermal 15 | 5 10 . Explosive . | . . . Electromagnetic 84 | 5 15 64 Robot Hit Streak 19 | 5 8 19 Robot Miss Streak 4 | 1 2 4 Penetration Max . | . . . Secondary Targets . | . . . Shots Hit Robots 151 | 9 20 122 Core Hits 50 | 3 8 39 Critical Hits 1 | . . 1 Critical Kills . | . . . Critical Parts Destroyed 1 | . . 1 Melee Attacks . | . . . Impact . | . . . Slashing . | . . . Piercing . | . . . Sneak Attacks . | . . . Combat Hostiles . | . . . Follow-up Attacks . | . . . Damage Inflicted 2234 | 128 221 1885 Guns 1140 | 102 221 817 Cannons 740 | . . 740 Explosions 343 | 26 . 317 Melee . | . . . Ramming 11 | . . 11 Kinetic 830 | . 24 806 Thermal 445 | 78 50 317 Explosive . | . . . Electromagnetic 948 | 50 147 751 Impact . | . . . Slashing . | . . . Piercing . | . . . Highest Corruption 2 | . . 2 Average Corruption 2 | . . 2 Corruption Purged . | . . . Effects 4 | . . 4 Message Errors 1 | . . 1 Data Loss (minor) 1 | . . 1 Targeting Errors 2 | . . 2 Overload Shots . | . . . Overflow Damage 13 | 13 . . Projectiles . | . . . Explosions 13 | 13 . . Melee . | . . . Knockbacks 4 | . . 4 Impact . | . . . Kinetic 3 | . . 3 Secondary 1 | . . 1 Self-Inflicted Damage 184 | 36 . 148 Shots 5 | 1 . 4 Rammed 5 | . . 5 Targets Rammed 5 | . . 5 Kicked . | . . . Crushed . | . . . Highest Temperature 265 | 92 246 265 Average Temperature 79 | 41 111 75 Received Heat Transfer 903 | . 102 801 Effects 4 | . . 4 Interference 4 | . . 4 Siege Activations . | . . . Robots Corrupted 1 | . . 1 Combat Hostiles 1 | . . 1 Parts Fried 3 | . . 3 Impact Corruptions . | . . . Robots Melted . | . . . Combat Hostiles . | . . . Parts Melted 1 | . 1 . Heat Transferred 746 | 198 148 400 Parts Sabotaged . | . . . Parts Stolen . | . . . Parts Stripped . | . . . Power Chain Reactions 6 | 1 . 5 Missiles Intercepted . | . . . Alert | -11 -10 -9 ------- Run | Scr Mat Mat Peak Influence 306 | 10 160 306 Average Influence 150 | 7 94 175 Maximum Alert Level 1 | . . 1 Low Security (%) 64 | 100 100 52 Level 1 35 | . . 47 Level 2 . | . . . Level 3 . | . . . Level 4 . | . . . Level 5 . | . . . High Security . | . . . Max Security . | . . . Squads Dispatched 1 | . 1 . Investigation . | . . . Extermination . | . . . Reinforcement 1 | . 1 . Assault . | . . . Garrison . | . . . Intercept . | . . . Construction Impeded . | . . . Haulers Reinforced . | . . . Stealth | -11 -10 -9 --------- Run | Scr Mat Mat Distress Signals 1 | . . 1 Communications Jammed . | . . . Distress Signals . | . . . Times Spotted 33 | . 9 24 Peak Tracking Total 4 | . 3 4 Tactical Retreats 3 | . 1 2 Traps | -11 -10 -9 ------- Run | Scr Mat Mat Traps Triggered . | . . . Indirectly . | . . . Trap Hack Attempts . | . . . Triggered . | . . . Disarmed . | . . . Reprogrammed . | . . . Reused . | . . . Traps Extracted . | . . . Installed . | . . . Triggered . | . . . Machines | -11 -10 -9 ---------- Run | Scr Mat Mat Machines Disabled 2 | . . 2 Max in Single Turn 1 | . . 1 Machines Sabotaged . | . . . Garrisons Compromised . | . . . Overloaded Fab Kills . | . . . Fab Network Shutdowns . | . . . Hacking | -11 -10 -9 --------- Run | Scr Mat Mat Machines Accessed 1 | . 1 . Terminals 1 | . 1 . Fabricators . | . . . Repair Stations . | . . . Recycling Units . | . . . Scanalyzers . | . . . Garrison Access . | . . . Total Hacks 7 | . 7 . Successful 5 | . 5 . Failed 2 | . 2 . Catastrophic . | . . . Database Lockouts . | . . . Manual 4 | . 4 . Terminals 7 | . 7 . Fabricators . | . . . Repair Stations . | . . . Recycling Units . | . . . Scanalyzers . | . . . Garrison Access . | . . . Terminal Hacks 3 | . 3 . Part Schematic 1 | . 1 . Prototype ID Bank 1 | . 1 . Locate Traps 1 | . 1 . Fabricator Hacks . | . . . Repair Station Hacks . | . . . Recycling Unit Hacks . | . . . Scanalyzer . | . . . Garrison Access Hacks . | . . . Unauthorized Hacks 5 | . 5 . Terminals 2 | . 2 . Track 1 | . 1 . Botnet 1 | . 1 . Fabricators . | . . . Repair Stations . | . . . Recycling Units . | . . . Scanalyzers . | . . . Garrison Access . | . . . Data Cores Recovered . | . . . Used . | . . . Hacking Detections 1 | . 1 . Full Trace Events . | . . . Feedback Events . | . . . Feedback Blocked . | . . . Robot Schematics Acquired . | . . . Robots Built . | . . . Matter . | . . . Time . | . . . Total Robot Build Rating . | . . . Part Schematics Acquired 1 | . 1 . Parts Built . | . . . Matter . | . . . Time . | . . . Total Part Build Rating . | . . . Parts Repaired . | . . . Time . | . . . Parts Recycled . | . . . Recycled Matter . | . . . Retrieved Matter . | . . . Retrieved Components . | . . . Parts Scanalyzed . | . . . Part Schematics Acquired . | . . . Parts Damaged . | . . . Bothacking | -11 -10 -9 ------------ Run | Scr Mat Mat Used RIF Installer . | . . . Robots Hacked . | . . . Non-combat . | . . . Combat . | . . . Robot Hacks Applied . | . . . Relay Couplers Released . | . . . Robots Rewired . | . . . Allies Hacked . | . . . Hacks Repelled . | . . . Allies | -11 -10 -9 -------- Run | Scr Mat Mat Total Allies . | . . . Largest Group . | . . . Highest-Rated Group . | . . . Highest-Rated Ally . | . . . Total Orders . | . . . Ally Attacks . | . . . Total Damage . | . . . Kills . | . . . Allies Corrupted . | . . . Allies Melted . | . . . Intel | -11 -10 -9 ------- Run | Scr Mat Mat Robot Analysis Total . | . . . Derelict Logs Recovered . | . . . Drone Launches . | . . . Drone Recoveries . | . . . Exploration | -11 -10 -9 ------------- Run | Scr Mat Mat Turns Passed 1244 | 52 269 923 Spaces Moved 556 | 24 150 382 Core . | . . . Treads 101 | 11 43 47 Legs 100 | 12 . 88 Wheels 355 | 1 107 247 Hover . | . . . Flight . | . . . Fastest Speed 100 | 100 110 130 Average Speed 140 | 137 128 144 Slowest Speed 270 | 160 180 270 Overloaded Moves . | . . . Propulsion Burnouts . | . . . Robots Hopped . | . . . Cave-ins Triggered . | . . . Exploration Rate (%) 22 | 3 27 38 Regions Visited 2 Branch Regions . Pre-discovered Areas . | . . . Known Exits Taken . | . . . Unknown Exits Taken 2 | 1 1 . Scrap Searched . | . . . Spaces Dug . | . . . Terrain Destroyed 21 | 6 . 15 Melee . | . . . Projectile . | . . . AOE 21 | 6 . 15 Actions | -11 -10 -9 --------- Run | Scr Mat Mat Total 822 | 34 195 593 Wait 72 | 1 21 50 Move 554 | 23 149 382 Hop . | . . . Pick Up 26 | 1 6 19 Fast Attach 10 | 1 1 8 Attach 13 | 1 1 11 Detach . | . . . Swap 8 | . 2 6 Drop 18 | 2 . 16 Fire 116 | 5 15 96 Melee . | . . . Ram . | . . . Kick . | . . . Crush 5 | . . 5 Escape Stasis . | . . . Rewire . | . . . Trap . | . . . Miscellaneous . | . . . Route ------- -11/Scrapyard -10/Materials -9/Materials (discovered 1 exit: [*Min]) History --------- Turn | Location | Event 1 | -11/Scrapyard | Discovered new exit (range 2) 53 | -11/Scrapyard | Entered Materials 292 | -10/Materials | Discovered new exit (range 14) 313 | -10/Materials | Build established: Mutant 322 | -10/Materials | Entered another Materials area 322 | -9/Materials | Evolved 2 slots: Propulsion x1, Utility x1 806 | -9/Materials | Discovered new exit (range 12) 1033 | -9/Materials | Core integrity fell below 50% 1091 | -9/Materials | Lost 7 parts (3n4w) 1245 | -9/Materials | Self-destructed Last Messages --------------- 01074_ G-47 Trooper destroyed. 01078_ K-01 Serf collects debris. 01080_ K-01 Serf cleans the Machine. 01082_ K-01 Serf collects debris. 01082_ Acquired Particle Gun. 01087_ Acquired Aluminum Leg. 01093_ Acquired 20 matter. 01097_ K-01 Serf collects debris. 01098_ Acquired Imp. Heat Sink. 01100_ K-01 Serf collects debris. 01121_ Acquired Mining Laser. 01125_ K-01 Serf cleans the Machine. 01130_ T-07 Excavator is excavating. 01132_ Reflective Plating destroyed. 01138_ Critical hit. 01138_ Lgt. Treads destroyed. 01152_ CGZTZDV9J:K=OPWL5OEIN6PI